fUSD/lending_fUSD_20250616
["ID","MTS","AMOUNT","RATE_DAILY","PERIOD"]
[366085287,1750056646377,-490.0,0.00016438,2]
[366085288,1750056646387,-490.0,0.00016438,2]
[366085290,1750056646397,-150.0,0.00016438,2]
[366085292,1750056646406,-490.0,0.00016438,2]
[366085294,1750056646416,-490.0,0.00016438,2]
[366085296,1750056646426,-310.58384037,0.00016438,2]
[366085297,1750056646436,-731.34,0.00016438,2]
[366085299,1750056646446,-1628.57,0.00016438,2]
[366085301,1750056646455,-1986.77,0.00016438,2]
[366085302,1750056646464,-492.39604357,0.00016438,2]
[366085304,1750056646474,-490.0,0.00016438,2]
[366085306,1750056646484,-603.81324061,0.00016438,2]
[366085308,1750056646494,-2873.88,0.00016438,2]
[366085310,1750056646504,-490.0,0.00016438,2]
[366085311,1750056646513,-490.0,0.00016438,2]
[366085313,1750056646523,-2537.43,0.00016438,2]
[366085315,1750056646533,-492.95505936,0.00016438,2]
[366085317,1750056646543,-1573.51,0.00016438,2]
[366085318,1750056646552,-490.0,0.00016438,2]
[366085320,1750056646562,-1949.42,0.00016438,2]
[366085322,1750056646571,-747.53,0.00016438,2]
[366085323,1750056646581,-494.39771913,0.00016438,2]
[366085325,1750056646590,-507.3207303,0.00016438,2]
[366085327,1750056646600,-495.45223218,0.00016438,2]
[366085329,1750056646609,-490.0,0.00016438,2]
[366085331,1750056646619,-490.0,0.00016438,2]
[366085332,1750056646628,-2253.19,0.00016438,2]
[366085334,1750056646639,-539.97,0.00016438,2]
[366085336,1750056646649,-490.0,0.00016438,2]
[366085338,1750056646659,-490.0,0.00016438,2]
[366085339,1750056646667,-151.0,0.00016438,2]
[366085341,1750056646677,-151.0,0.00016438,2]
[366085343,1750056646687,-590.01916126,0.00016438,2]
[366085345,1750056646696,-494.05734832,0.00016438,2]
[366085346,1750056646706,-1207.36,0.00016438,2]
[366085348,1750056646715,-490.0,0.00016438,2]
[366085350,1750056646725,-587.6,0.00016438,2]
[366085352,1750056646734,-490.0,0.00016438,2]
[366085354,1750056646743,-495.40227159,0.00016438,2]
[366085355,1750056646753,-1013.07,0.00016438,2]
[366085357,1750056646762,-2193.01,0.00016438,2]
[366085359,1750056646771,-293.104791,0.00016438,2]
[366085361,1750056646780,-293.104791,0.00016438,2]
[366085362,1750056646790,-151.0,0.00016438,2]
[366085364,1750056646799,-3378.33,0.00016438,2]
[366085366,1750056646808,-403.51221179,0.00016438,2]
[366085368,1750056646818,-151.0,0.00016438,2]
[366085369,1750056646827,-1267.31,0.00016438,2]
[366085371,1750056646839,-620.78,0.00016438,2]
[366085373,1750056646849,-500.0,0.00016438,2]
[366085375,1750056646858,-500.0,0.00016438,2]
[366085376,1750056646867,-556.75,0.00016438,2]
[366085378,1750056646877,-500.0,0.00016438,2]
[366085380,1750056646886,-1135.89,0.00016438,2]
[366085382,1750056646895,-500.0,0.00016438,2]
[366085383,1750056646904,-661.71,0.00016438,2]
[366085385,1750056646913,-490.0,0.00016438,2]
[366085387,1750056646922,-293.104791,0.00016438,2]
[366085389,1750056646931,-293.104791,0.00016438,2]
[366085390,1750056646940,-2553.33,0.00016438,2]
[366085392,1750056646949,-501.01,0.00016438,2]
[366085393,1750056646958,-1866.26,0.00016438,2]
[366085394,1750056646967,-2459.88,0.00016438,2]
[366085395,1750056646977,-490.0,0.00016438,2]
[366085396,1750056646986,-495.01054497,0.00016438,2]
[366085397,1750056646996,-1900.71,0.00016438,2]
[366085398,1750056647006,-158.41159934,0.00016438,2]
[366085399,1750056647016,-660.69,0.00016438,2]
[366085400,1750056647026,-2258.55,0.00016438,2]
[366085401,1750056647035,-490.0,0.00016438,2]
[366085402,1750056647045,-10179.88,0.00016438,2]
[366085403,1750056647055,-490.0,0.00016438,2]
[366085404,1750056647065,-490.0,0.00016438,2]
[366085405,1750056647074,-490.0,0.00016438,2]
[366085406,1750056647084,-507.48,0.00016438,2]
[366085407,1750056647094,-490.0,0.00016438,2]
[366085409,1750056647103,-1643.95,0.00016438,2]
[366085411,1750056647113,-494.96482603,0.00016438,2]
[366085413,1750056647122,-823.51,0.00016438,2]
[366085414,1750056647131,-456.108707,0.00016438,2]
[366085416,1750056647141,-490.0,0.00016438,2]
[366085418,1750056647152,-456.108707,0.00016438,2]
[366085420,1750056647166,-490.0,0.00016438,2]
[366085422,1750056647175,-1034.76,0.00016438,2]
[366085424,1750056647184,-2438.44,0.00016438,2]
[366085426,1750056647193,-490.0,0.00016438,2]
[366085428,1750056647202,-6904.63,0.00016438,2]
[366085430,1750056647211,-491.24434573,0.00016438,2]
[366085432,1750056647220,-471.39306888,0.00016438,2]
[366085434,1750056647230,-490.0,0.00016438,2]
[366085436,1750056647239,-9277.24,0.00016438,2]
[366085438,1750056647249,-490.0,0.00016438,2]
[366085440,1750056647259,-1474.41,0.00016438,2]
[366085442,1750056647268,-456.108707,0.00016438,2]
[366085444,1750056647277,-490.0,0.00016438,2]
[366085446,1750056647287,-490.0,0.00016438,2]
[366085448,1750056647297,-456.108707,0.00016438,2]
[366085450,1750056647307,-490.0,0.00016438,2]
[366085452,1750056647316,-1460.5,0.00016438,2]
[366085454,1750056647326,-490.0,0.00016438,2]
[366085456,1750056647336,-422.05225712,0.00016438,2]
[366085458,1750056647345,-490.0,0.00016438,2]
[366085460,1750056647355,-596.81,0.00016438,2]
[366085462,1750056647364,-214.308577,0.00016438,2]
[366085464,1750056647373,-490.0,0.00016438,2]
[366085466,1750056647383,-214.308577,0.00016438,2]
[366085468,1750056647392,-1474.85,0.00016438,2]
[366085470,1750056647402,-490.0,0.00016438,2]
[366085472,1750056647411,-1465.69,0.00016438,2]
[366085474,1750056647420,-2152.15,0.00016438,2]
[366085476,1750056647429,-508.1949713,0.00016438,2]
[366085478,1750056647439,-593.15,0.00016438,2]
[366085480,1750056647448,-1155.23,0.00016438,2]
[366085482,1750056647457,-2255.31,0.00016438,2]
[366085484,1750056647467,-499.52003681,0.00016438,2]
[366085486,1750056647476,-819.49,0.00016438,2]
[366085488,1750056647485,-490.0,0.00016438,2]
[366085490,1750056647494,-214.308577,0.00016438,2]
[366085492,1750056647504,-214.308577,0.00016438,2]
[366085494,1750056647513,-916.9,0.00016438,2]
[366085496,1750056647522,-499.03835969,0.00016438,2]
[366085498,1750056647531,-853.416478,0.00016438,2]
[366085500,1750056647541,-853.416478,0.00016438,2]
[366085502,1750056647550,-708.36,0.00016438,2]
[366085504,1750056647559,-587.69,0.00016438,2]
[366085506,1750056647569,-490.0,0.00016438,2]
[366085508,1750056647578,-2353.06,0.00016438,2]
[366085510,1750056647588,-493.02469441,0.00016438,2]
[366085512,1750056647597,-490.0,0.00016438,2]
[366085514,1750056647606,-853.416478,0.00016438,2]
[366085516,1750056647615,-853.416478,0.00016438,2]
[366085518,1750056647625,-490.0,0.00016438,2]
[366085520,1750056647634,-630.37,0.00016438,2]
[366085522,1750056647643,-4297.95,0.00016438,2]
[366085524,1750056647652,-1482.67,0.00016438,2]
[366085526,1750056647662,-490.0,0.00016438,2]
[366085528,1750056647672,-490.0,0.00016438,2]
[366085530,1750056647681,-490.0,0.00016438,2]
[366085532,1750056647690,-490.0,0.00016438,2]
[366085534,1750056647700,-490.0,0.00016438,2]
[366085535,1750056647709,-2399.57,0.00016438,2]
[366085537,1750056647718,-1303.05,0.00016438,2]
[366085539,1750056647728,-154.398588,0.00016438,2]
[366085541,1750056647737,-154.398588,0.00016438,2]
[366085543,1750056647746,-1089.22,0.00016438,2]
[366085545,1750056647756,-493.49968535,0.00016438,2]
[366085547,1750056647765,-490.0,0.00016438,2]
[366085549,1750056647775,-2827.95,0.00016438,2]
[366085551,1750056647784,-500.0,0.00016438,2]
[366085553,1750056647794,-4777.42,0.00016438,2]
[366085555,1750056647805,-500.0,0.00016438,2]
[366085557,1750056647814,-490.0,0.00016438,2]
[366085559,1750056647823,-500.0,0.00016438,2]
[366085561,1750056647834,-154.398588,0.00016438,2]
[366085563,1750056647843,-493.60345217,0.00016438,2]
[366085565,1750056647853,-154.398588,0.00016438,2]
[366085567,1750056647862,-500.0,0.00016438,2]
[366085569,1750056647871,-483.2988675,0.00016438,2]
[366085572,1750056647882,-490.0,0.00016438,2]
[366085573,1750056647891,-1728.05,0.00016438,2]
[366085576,1750056647901,-1774.72,0.00016438,2]
[366085578,1750056647911,-490.0,0.00016438,2]
[366085580,1750056647920,-2395.8,0.00016438,2]
[366085582,1750056647929,-490.0,0.00016438,2]
[366085584,1750056647938,-490.0,0.00016438,2]
[366085585,1750056647947,-427.8416371,0.00016438,2]
[366085587,1750056647956,-4513.39,0.00016438,2]
[366085589,1750056647966,-2657.35,0.00016438,2]
[366085591,1750056647975,-490.0,0.00016438,2]
[366085593,1750056647984,-1232.12,0.00016438,2]
[366085595,1750056647994,-490.0,0.00016438,2]
[366085597,1750056648003,-490.0,0.00016438,2]
[366085599,1750056648013,-397.81115585,0.00016438,2]
[366085601,1750056648023,-492.60010863,0.00016438,2]
[366085603,1750056648032,-585.29,0.00016438,2]
[366085605,1750056648042,-715.55,0.00016438,2]
[366085607,1750056648052,-500.0,0.00016438,2]
[366085609,1750056648062,-490.42353218,0.00016438,2]
[366085611,1750056648072,-490.0,0.00016438,2]
[366085613,1750056648082,-500.0,0.00016438,2]
[366085615,1750056648091,-500.0,0.00016438,2]
[366085617,1750056648101,-490.0,0.00016438,2]
[366085619,1750056648111,-989.67,0.00016438,2]
[366085621,1750056648120,-454.75891,0.00016438,2]
[366085623,1750056648130,-490.0,0.00016438,2]
[366085625,1750056648139,-490.0,0.00016438,2]
[366085627,1750056648150,-490.0,0.00016438,2]
[366085629,1750056648163,-454.75891,0.00016438,2]
[366085631,1750056648173,-490.0,0.00016438,2]
[366085633,1750056648182,-490.0,0.00016438,2]
[366085635,1750056648191,-490.0,0.00016438,2]
[366085638,1750056648208,-490.0,0.00016438,2]
[366085640,1750056648218,-490.0,0.00016438,2]
[366085642,1750056648228,-454.75891,0.00016438,2]
[366085644,1750056648238,-490.0,0.00016438,2]
[366085646,1750056648249,-9930.37,0.00016438,2]
[366085648,1750056648258,-454.75891,0.00016438,2]
[366085650,1750056648269,-2980.78,0.00016438,2]
[366085652,1750056648279,-831.02,0.00016438,2]
[366085654,1750056648289,-503.78278697,0.00016438,2]
[366085656,1750056648299,-490.0,0.00016438,2]
[366085658,1750056648310,-490.0,0.00016438,2]
[366085660,1750056648320,-491.99752988,0.00016438,2]
[366085662,1750056648330,-492.16599123,0.00016438,2]
[366085664,1750056648340,-488.94179837,0.00016438,2]
[366085666,1750056648350,-1263.04,0.00016438,2]
[366085668,1750056648360,-492.06929683,0.00016438,2]
[366085670,1750056648370,-23440.85,0.00016438,2]
[366085672,1750056648379,-490.0,0.00016438,2]
[366085674,1750056648389,-315.62313998,0.00016438,2]
[366085676,1750056648399,-336.72533,0.00016438,2]
[366085677,1750056648408,-492.02,0.00016438,2]
[366085679,1750056648418,-1823.65,0.00016438,2]
[366085681,1750056648428,-556.08,0.00016438,2]
[366085683,1750056648438,-151.0,0.00016438,2]
[366085685,1750056648447,-336.72533,0.00016438,2]
[366085687,1750056648457,-151.0,0.00016438,2]
[366085689,1750056648467,-490.0,0.00016438,2]
[366085691,1750056648477,-640.69,0.00016438,2]
[366085693,1750056648487,-151.0,0.00016438,2]
[366085695,1750056648497,-5590.59,0.00016438,2]
[366085697,1750056648507,-3921.82,0.00016438,2]
[366085699,1750056648517,-1593.37,0.00016438,2]
[366085701,1750056648527,-490.0,0.00016438,2]
[366085703,1750056648537,-536.0787695,0.00016438,2]
[366085705,1750056648547,-490.0,0.00016438,2]
[366085707,1750056648557,-490.0,0.00016438,2]
[366085709,1750056648568,-336.72533,0.00016438,2]
[366085711,1750056648578,-336.72533,0.00016438,2]
[366085713,1750056648588,-490.0,0.00016438,2]
[366085715,1750056648598,-928.1,0.00016438,2]
[366085717,1750056648608,-490.0,0.00016438,2]
[366085719,1750056648618,-10844.45,0.00016438,2]
[366085721,1750056648627,-490.0,0.00016438,2]
[366085724,1750056648644,-1852.95,0.00016438,2]
[366085726,1750056648654,-181.640528,0.00016438,2]
[366085728,1750056648663,-1498.58,0.00016438,2]
[366085730,1750056648674,-1323.92,0.00016438,2]
[366085732,1750056648684,-595.21713206,0.00016438,2]
[366085734,1750056648694,-498.36594803,0.00016438,2]
[366085736,1750056648703,-826.95,0.00016438,2]
[366085738,1750056648713,-1016.47,0.00016438,2]
[366085740,1750056648723,-1836.27,0.00016438,2]
[366085742,1750056648733,-2344.2,0.00016438,2]
[366085744,1750056648743,-530.50467146,0.00016438,2]
[366085746,1750056648753,-494.58236387,0.00016438,2]
[366085748,1750056648764,-503.79411564,0.00016438,2]
[366085750,1750056648774,-4407.34,0.00016438,2]
[366085751,1750056648784,-490.0,0.00016438,2]
[366085754,1750056648795,-3683.39,0.00016438,2]
[366085756,1750056648805,-1965.4,0.00016438,2]
[366085758,1750056648816,-151.0,0.00016438,2]
[366085760,1750056648826,-151.0,0.00016438,2]
[366085762,1750056648836,-490.0,0.00016438,2]
[366085764,1750056648846,-496.48919933,0.00016438,2]
[366085766,1750056648856,-499.48824707,0.00016438,2]
[366085768,1750056648866,-490.0,0.00016438,2]
[366085770,1750056648877,-490.0,0.00016438,2]
[366085772,1750056648888,-490.0,0.00016438,2]
[366085774,1750056648898,-490.0,0.00016438,2]
[366085776,1750056648908,-1221.23,0.00016438,2]
[366085778,1750056648919,-490.0,0.00016438,2]
[366085780,1750056648930,-492.90063709,0.00016438,2]
[366085782,1750056648940,-490.0,0.00016438,2]
[366085784,1750056648950,-6953.33,0.00016438,2]
[366085786,1750056648961,-1194.58,0.00016438,2]
[366085788,1750056648971,-490.0,0.00016438,2]
[366085790,1750056648982,-328.05762343,0.00016438,2]
[366085792,1750056648992,-525.06,0.00016438,2]
[366085794,1750056649002,-811.21,0.00016438,2]
[366085796,1750056649012,-490.0,0.00016438,2]
[366085798,1750056649023,-6791.57,0.00016438,2]
[366085800,1750056649032,-490.0,0.00016438,2]
[366085802,1750056649042,-977.22,0.00016438,2]
[366085804,1750056649054,-492.28654871,0.00016438,2]
[366085806,1750056649064,-600.0,0.00016438,2]
[366085808,1750056649074,-496.27368078,0.00016438,2]
[366085811,1750056649091,-490.0,0.00016438,2]
[366085813,1750056649102,-490.0,0.00016438,2]
[366085815,1750056649113,-674.86,0.00016438,2]
[366085817,1750056649125,-3191.58,0.00016438,2]
[366085819,1750056649136,-490.0,0.00016438,2]
[366085821,1750056649147,-490.0,0.00016438,2]
[366085823,1750056649160,-490.0,0.00016438,2]
[366085825,1750056649171,-570.5,0.00016438,2]
[366085827,1750056649182,-1170.53,0.00016438,2]
[366085829,1750056649193,-490.0,0.00016438,2]
[366085831,1750056649204,-794.54,0.00016438,2]
[366085833,1750056649214,-497.1920181,0.00016438,2]
[366085835,1750056649224,-490.0,0.00016438,2]
[366085837,1750056649235,-1053.69,0.00016438,2]
[366085839,1750056649245,-490.0,0.00016438,2]
[366085841,1750056649255,-502.78743232,0.00016438,2]
[366085843,1750056649265,-2678.86,0.00016438,2]
[366085845,1750056649276,-490.0,0.00016438,2]
[366085847,1750056649287,-494.35591029,0.00016438,2]
[366085849,1750056649298,-490.0,0.00016438,2]
[366085852,1750056649309,-1252.94,0.00016438,2]
[366085854,1750056649319,-490.0,0.00016438,2]
[366085856,1750056649330,-490.0,0.00016438,2]
[366085857,1750056649340,-490.0,0.00016438,2]
[366085860,1750056649351,-490.0,0.00016438,2]
[366085862,1750056649361,-491.53352089,0.00016438,2]
[366085864,1750056649371,-490.0,0.00016438,2]
[366085866,1750056649382,-1483.42,0.00016438,2]
[366085868,1750056649392,-495.37282596,0.00016438,2]
[366085870,1750056649403,-1370.43,0.00016438,2]
[366085872,1750056649414,-490.0,0.00016438,2]
[366085874,1750056649424,-490.0,0.00016438,2]
[366085876,1750056649434,-2906.87,0.00016438,2]
[366085878,1750056649444,-3142.79,0.00016438,2]
[366085880,1750056649454,-770.95,0.00016438,2]
[366085882,1750056649464,-490.0,0.00016438,2]
[366085884,1750056649474,-490.0,0.00016438,2]
[366085886,1750056649484,-490.0,0.00016438,2]
[366085887,1750056649494,-629.97,0.00016438,2]
[366085890,1750056649504,-151.0,0.00016438,2]
[366085892,1750056649513,-595.76,0.00016438,2]
[366085893,1750056649524,-151.0,0.00016438,2]
[366085897,1750056649546,-490.0,0.00016438,2]
[366085899,1750056649558,-8157.96,0.00016438,2]
[366085901,1750056649569,-490.0,0.00016438,2]
[366085903,1750056649580,-490.0,0.00016438,2]
[366085905,1750056649590,-1405.96,0.00016438,2]
[366085907,1750056649601,-2487.02,0.00016438,2]
[366085909,1750056649612,-777.06,0.00016438,2]
[366085912,1750056649622,-1674.76,0.00016438,2]
[366085914,1750056649633,-494.70021302,0.00016438,2]
[366085916,1750056649643,-827.38,0.00016438,2]
[366085917,1750056649653,-553.58,0.00016438,2]
[366085918,1750056649664,-490.0,0.00016438,2]
[366085919,1750056649675,-511.44271607,0.00016438,2]
[366085920,1750056649685,-490.0,0.00016438,2]
[366085921,1750056649696,-151.0,0.00016438,2]
[366085922,1750056649706,-151.0,0.00016438,2]
[366085923,1750056649716,-4453.36,0.00016438,2]
[366085924,1750056649726,-761.94,0.00016438,2]
[366085925,1750056649737,-499.22674662,0.00016438,2]
[366085927,1750056649747,-808.43,0.00016438,2]
[366085928,1750056649758,-4106.15,0.00016438,2]
[366085930,1750056649769,-490.0,0.00016438,2]
[366085933,1750056649780,-2235.97,0.00016438,2]
[366085935,1750056649790,-1106.29,0.00016438,2]
[366085963,1750056650078,-151.0,0.00016438,2]
[366085964,1750056650100,-151.0,0.00016438,2]
[366085965,1750056650111,-490.0,0.00016438,2]
[366085966,1750056650121,-903.02,0.00016438,2]
[366085967,1750056650131,-1194.49,0.00016438,2]
[366085968,1750056650141,-2163.08,0.00016438,2]
[366085969,1750056650151,-151.0,0.00016438,2]
[366085970,1750056650164,-154.193656,0.00016438,2]
[366085971,1750056650174,-500.0,0.00016438,2]
[366085972,1750056650184,-736.44,0.00016438,2]
[366085974,1750056650195,-500.0,0.00016438,2]
[366085976,1750056650205,-509.45012815,0.00016438,2]
[366085978,1750056650216,-490.0,0.00016438,2]
[366085980,1750056650226,-20066.12,0.00016438,2]
[366085982,1750056650237,-3307.68,0.00016438,2]
[366085984,1750056650248,-490.0,0.00016438,2]
[366085986,1750056650259,-1769.92,0.00016438,2]
[366085988,1750056650269,-897.01,0.00016438,2]
[366085990,1750056650279,-1384.52,0.00016438,2]
[366085992,1750056650289,-490.0,0.00016438,2]
[366085994,1750056650299,-490.0,0.00016438,2]
[366085996,1750056650309,-492.94784117,0.00016438,2]
[366085998,1750056650319,-522.52,0.00016438,2]
[366086001,1750056650329,-342.279241,0.00016438,2]
[366086003,1750056650345,-342.279241,0.00016438,2]
[366086005,1750056650355,-19002.41,0.00016438,2]
[366086007,1750056650365,-8384.01,0.00016438,2]
[366086009,1750056650376,-517.12,0.00016438,2]
[366086011,1750056650386,-490.0,0.00016438,2]
[366086013,1750056650396,-1003.69,0.00016438,2]
[366086015,1750056650407,-1218.32,0.00016438,2]
[366086017,1750056650417,-342.279241,0.00016438,2]
[366086019,1750056650427,-490.0,0.00016438,2]
[366086021,1750056650437,-1343.03,0.00016438,2]
[366086023,1750056650446,-342.279241,0.00016438,2]
[366086025,1750056650456,-1274.71,0.00016438,2]
[366086028,1750056650467,-1991.23,0.00016438,2]
[366086030,1750056650477,-1354.35,0.00016438,2]
[366086032,1750056650487,-490.0,0.00016438,2]
[366086034,1750056650496,-948.06,0.00016438,2]
[366086036,1750056650506,-688.25,0.00016438,2]
[366086038,1750056650516,-497.51912115,0.00016438,2]
[366086040,1750056650526,-490.0,0.00016438,2]
[366086042,1750056650537,-490.0,0.00016438,2]
[366086044,1750056650547,-1019.52,0.00016438,2]
[366086046,1750056650558,-490.0,0.00016438,2]
[366086048,1750056650568,-495.58396719,0.00016438,2]
[366086050,1750056650579,-890.49,0.00016438,2]
[366086053,1750056650590,-1006.92,0.00016438,2]
[366086055,1750056650600,-500.0,0.00016438,2]
[366086056,1750056650611,-500.0,0.00016438,2]
[366086059,1750056650621,-500.0,0.00016438,2]
[366086061,1750056650632,-500.0,0.00016438,2]
[366086063,1750056650643,-491.9384979,0.00016438,2]
[366086065,1750056650653,-490.0,0.00016438,2]
[366086067,1750056650663,-490.0,0.00016438,2]
[366086069,1750056650674,-1190.37,0.00016438,2]
[366086071,1750056650684,-1777.4,0.00016438,2]
[366086073,1750056650694,-5798.77,0.00016438,2]
[366086075,1750056650705,-1277.78,0.00016438,2]
[366086077,1750056650715,-490.0,0.00016438,2]
[366086079,1750056650726,-1399.85,0.00016438,2]
[366086081,1750056650736,-4034.03,0.00016438,2]
[366086083,1750056650746,-490.0,0.00016438,2]
[366086085,1750056650756,-493.89243088,0.00016438,2]
[366086087,1750056650766,-490.0,0.00016438,2]
[366086090,1750056650781,-494.31956412,0.00016438,2]
[366086092,1750056650792,-490.0,0.00016438,2]
[366086094,1750056650803,-604.83,0.00016438,2]
[366086096,1750056650814,-492.06,0.00016438,2]
[366086098,1750056650824,-3763.29,0.00016438,2]
[366086101,1750056650834,-1760.73,0.00016438,2]
[366086103,1750056650847,-1229.85,0.00016438,2]
[366086105,1750056650857,-1902.84,0.00016438,2]
[366086107,1750056650868,-151.0,0.00016438,2]
[366086109,1750056650878,-490.0,0.00016438,2]
[366086111,1750056650888,-1557.59,0.00016438,2]
[366086113,1750056650898,-490.0,0.00016438,2]
[366086115,1750056650908,-492.97445641,0.00016438,2]
[366086117,1750056650919,-18090.43,0.00016438,2]
[366086120,1750056650930,-681.54,0.00016438,2]
[366086122,1750056650940,-1495.11,0.00016438,2]
[366086124,1750056650950,-522.48,0.00016438,2]
[366086126,1750056650961,-490.0,0.00016438,2]
[366086128,1750056650971,-151.0,0.00016438,2]
[366086129,1750056650982,-490.0,0.00016438,2]
[366086130,1750056650993,-151.0,0.00016438,2]
[366086131,1750056651003,-1476.06,0.00016438,2]
[366086132,1750056651014,-491.47103858,0.00016438,2]
[366086133,1750056651024,-151.0,0.00016438,2]
[366086134,1750056651034,-151.0,0.00016438,2]
[366086135,1750056651044,-150.0,0.00016438,2]
[366086136,1750056651055,-1779.51495509,0.00016448,2]
[366086137,1750056651065,-150.0,0.00016465,2]
[366086138,1750056651076,-150.0,0.00016465,2]
[366086139,1750056651086,-202.25101604,0.00016465,2]
[366086141,1750056651096,-150.0,0.00016465,2]
[366086143,1750056651107,-500.0,0.00016465,2]
[366086144,1750056651117,-500.0,0.00016469,2]
[366086145,1750056651127,-151.0,0.00016473,2]
[366086146,1750056651139,-220.817329,0.00016473,2]
[366086147,1750056651151,-220.817329,0.00016473,2]
[366086148,1750056651166,-232.00159,0.00016473,2]
[366086149,1750056651177,-151.0,0.00016473,2]
[366086150,1750056651188,-151.0,0.00016473,2]
[366086151,1750056651198,-151.0,0.00016473,2]
[366086152,1750056651209,-224.438234,0.00016473,2]
[366086153,1750056651219,-151.0,0.00016473,2]
[366086154,1750056651242,-224.438234,0.00016473,2]
[366086155,1750056651254,-234.279914,0.00016473,2]
[366086156,1750056651266,-234.279914,0.00016473,2]
[366086157,1750056651277,-151.0,0.00016473,2]
[366086158,1750056651288,-224.40553694,0.0001649,2]
[366086159,1750056651300,-150.0,0.00016493,2]
[366086160,1750056651311,-150.0,0.00016493,2]
[366086161,1750056651323,-150.0,0.00016493,2]
[366086162,1750056651334,-500.0,0.00016493,2]
[366086163,1750056651345,-247.814804,0.00016493,2]
[366086164,1750056651356,-247.814804,0.00016493,2]
[366086165,1750056651367,-34786.26693424,0.000165,2]
[366086166,1750056651378,-151.0,0.000165,2]
[366086167,1750056651390,-1560.41517649,0.000165,7]
[366086168,1750056651401,-151.0,0.000165,2]
[366086169,1750056651412,-151.527042,0.000165,2]
[366086170,1750056651423,-151.0,0.000165,2]
[366086171,1750056651436,-151.0,0.000165,2]
[366086172,1750056651447,-151.0,0.000165,2]
[366086173,1750056651457,-151.0,0.000165,2]
[366086174,1750056651469,-151.0,0.000165,2]
[366086175,1750056651479,-151.0,0.000165,2]
[366086176,1750056651490,-354.550291,0.000165,2]
[366086177,1750056651501,-354.550291,0.000165,2]
[366086178,1750056651513,-151.0,0.000165,2]
[366086179,1750056651524,-181.984119,0.000165,2]
[366086180,1750056651534,-181.984119,0.000165,2]
[366086181,1750056651545,-151.0,0.000165,2]
[366086182,1750056651557,-293.104791,0.000165,2]
[366086183,1750056651568,-151.0,0.000165,2]
[366086184,1750056651579,-293.104791,0.000165,2]
[366086185,1750056651591,-461.62,0.000165,2]
[366086186,1750056651601,-797.51,0.000165,2]
[366086187,1750056651612,-214.308577,0.000165,2]
[366086190,1750056651624,-214.308577,0.000165,2]
[366086192,1750056651634,-853.416478,0.000165,2]
[366086194,1750056651645,-853.416478,0.000165,2]
[366086196,1750056651657,-154.398588,0.000165,2]
[366086199,1750056651674,-154.398588,0.000165,2]
[366086201,1750056651685,-454.75891,0.000165,2]
[366086203,1750056651697,-454.75891,0.000165,2]
[366086205,1750056651708,-151.0,0.000165,2]
[366086208,1750056651719,-797.51,0.000165,2]
[366086210,1750056651731,-461.62,0.000165,2]
[366086212,1750056651742,-151.0,0.000165,2]
[366086214,1750056651753,-797.51,0.000165,2]
[366086216,1750056651765,-461.62,0.000165,2]
[366086218,1750056651775,-461.62,0.000165,2]
[366086221,1750056651786,-797.51,0.000165,2]